{"text_format":"3","workbook":"xlsx","n_sheets":1,"sheets":["Протокол ШЭ ВОШ по предмету"],"not_rendered":{"defined_names":2},"read":"whole","date_system":"1900"}

{"sheet":"Протокол ШЭ ВОШ по предмету","index":0,"n_rows":73,"n_cols":7,"rows_kept":73}
["Наименование ОО","Фамилия","Класс обучения","Балл","Добавлено баллов по итогам апелляций","Итоговый балл","Статус"]
["Муниципальное бюджетное общеобразовательное учреждение «Джалильская средняя общеобразовательная школа №2» Сармановского муниципального района РТ","Шайхуллин",4,30,null,{"$f":"E2+D2","v":30},"призер"]
["Муниципальное бюджетное общеобразовательное учреждение «Сармановская гимназия» Сармановского муниципального района Республики Татарстан","Садиков",4,26,null,{"$f":"E3+D3","v":26},"призер"]
["Муниципальное бюджетное общеобразовательное учреждение «Джалильская гимназия» Сармановского муниципального района РТ","Хасанова",4,18,14,{"$f":"E4+D4","v":32},"победитель"]
["Муниципальное бюджетное общеобразовательное учреждение «Сармановская гимназия» Сармановского муниципального района Республики Татарстан","Нуриева",4,18,null,{"$f":"E5+D5","v":18}]
["Муниципальное бюджетное общеобразовательное учреждение «Сармановская средняя общеобразовательная школа» Сармановского муниципального района Республики Татарстан","Харисова",4,14,null,{"$f":"E6+D6","v":14}]
["Муниципальное бюджетное общеобразовательное учреждение «Джалильская гимназия» Сармановского муниципального района РТ","Валиев",4,11,null,{"$f":"E7+D7","v":11}]
["Муниципальное бюджетное общеобразовательное учреждение «Сармановская гимназия» Сармановского муниципального района Республики Татарстан","Хаертдинова",4,11,null,{"$f":"E8+D8","v":11}]
["Муниципальное бюджетное общеобразовательное учреждение «Сармановская средняя общеобразовательная школа» Сармановского муниципального района Республики Татарстан","Шаяхметов",4,6,null,{"$f":"E9+D9","v":6}]
["Муниципальное бюджетное общеобразовательное учреждение «Джалильская средняя общеобразовательная школа №1 с углубленным изучением отдельных предметов» Сармановского муниципального района РТ","Ильясов",4,6,null,{"$f":"E10+D10","v":6}]
["Муниципальное бюджетное общеобразовательное учреждение \"Лешев-Тамакская основная общеобразовательная школа\" Сармановского муниципального района Республики Татарстан","Ахметзянова",4,5,null,{"$f":"E11+D11","v":5}]
["Муниципальное бюджетное общеобразовательное учреждение «Джалильская средняя общеобразовательная школа №1 с углубленным изучением отдельных предметов» Сармановского муниципального района РТ","Зимагулова",4,5,null,{"$f":"E12+D12","v":5}]
["Муниципальное бюджетное общеобразовательное учреждение «Джалильская гимназия» Сармановского муниципального района РТ","Зиннатуллина",4,4,null,{"$f":"E13+D13","v":4}]
["Муниципальное бюджетное общеобразовательное учреждение «Старокаширская средняя общеобразовательная школа имени Зинната Хасанова» Сармановского муниципального района Республики Татарстан","Сайфуллина",4,3,null,{"$f":"E14+D14","v":3}]
["МБОУ «Старомензелябашская основная общеобразовательная школа имени А.Тимергалина» Сармановского муниципального района РТ","Хасанова",4,3,null,{"$f":"E15+D15","v":3}]
["Муниципальное бюджетное общеобразовательное учреждение «Джалильская средняя общеобразовательная школа №1 с углубленным изучением отдельных предметов» Сармановского муниципального района РТ","Гимранова",4,2,null,{"$f":"E16+D16","v":2}]
["Муниципальное бюджетное общеобразовательное учреждение «Джалильская гимназия» Сармановского муниципального района РТ","Аслямов",5,38,null,{"$f":"E17+D17","v":38},"победитель"]
["Муниципальное бюджетное общеобразовательное учреждение «Сармановская гимназия» Сармановского муниципального района Республики Татарстан","Фарукшин",5,33,null,{"$f":"E18+D18","v":33},"призер"]
["Муниципальное бюджетное общеобразовательное учреждение «Джалильская гимназия» Сармановского муниципального района РТ","Ганиева",5,33,null,{"$f":"E19+D19","v":33},"призер"]
["Муниципальное бюджетное общеобразовательное учреждение «Джалильская гимназия» Сармановского муниципального района РТ","Миннегалиева",5,31,null,{"$f":"E20+D20","v":31},"призер"]
["Муниципальное бюджетное общеобразовательное учреждение «Сармановская гимназия» Сармановского муниципального района Республики Татарстан","Хафизов",5,23,null,{"$f":"E21+D21","v":23}]
["Муниципальное бюджетное общеобразовательное учреждение «Саклов-Башская средняя общеобразовательная школа» Сармановского муниципального района Республики Татарстан","Габидуллина",5,14,null,{"$f":"E22+D22","v":14}]
["Муниципальное бюджетное общеобразовательное учреждение «Петровскозаводская средняя общеобразовательная школа» Сармановского муниципального района Республики Татарстан","Гильфанова",5,10,null,{"$f":"E23+D23","v":10}]
["Муниципальное бюджетное общеобразовательное учреждение «Джалильская средняя общеобразовательная школа №2» Сармановского муниципального района РТ","Сафиуллина",5,9,null,{"$f":"E24+D24","v":9}]
["Муниципальное бюджетное общеобразовательное учреждение «Джалильская средняя общеобразовательная школа №1 с углубленным изучением отдельных предметов» Сармановского муниципального района РТ","Садыкова",5,8,null,{"$f":"E25+D25","v":8}]
["Муниципальное бюджетное общеобразовательное учреждение «Старокаширская средняя общеобразовательная школа имени Зинната Хасанова» Сармановского муниципального района Республики Татарстан","Марданшина",5,8,null,{"$f":"E26+D26","v":8}]
["Муниципальное бюджетное общеобразовательное учреждение «Джалильская средняя общеобразовательная школа №1 с углубленным изучением отдельных предметов» Сармановского муниципального района РТ","Сулейманов",5,8,null,{"$f":"E27+D27","v":8}]
["Муниципальное бюджетное общеобразовательное учреждение «Сармановская средняя общеобразовательная школа» Сармановского муниципального района Республики Татарстан","Гараев",5,7,null,{"$f":"E28+D28","v":7}]
["Муниципальное бюджетное общеобразовательное учреждение \"Лешев-Тамакская основная общеобразовательная школа\" Сармановского муниципального района Республики Татарстан","Нуртдинова",5,6,null,{"$f":"E29+D29","v":6}]
["Муниципальное бюджетное общеобразовательное учреждение «Петровскозаводская средняя общеобразовательная школа» Сармановского муниципального района Республики Татарстан","Арсланова",5,5,null,{"$f":"E30+D30","v":5}]
["Муниципальное бюджетное общеобразовательное учреждение «Джалильская средняя общеобразовательная школа №2» Сармановского муниципального района РТ","Газизова",5,5,null,{"$f":"E31+D31","v":5}]
["Муниципальное бюджетное общеобразовательное учреждение «Джалильская гимназия» Сармановского муниципального района РТ","Сахабиев",6,41,null,{"$f":"E32+D32","v":41},"победитель"]
["Муниципальное бюджетное общеобразовательное учреждение «Джалильская средняя общеобразовательная школа №2» Сармановского муниципального района РТ","Латыпов",6,23,null,{"$f":"E33+D33","v":23},"призер"]
["Муниципальное бюджетное общеобразовательное учреждение «Петровскозаводская средняя общеобразовательная школа» Сармановского муниципального района Республики Татарстан","Халикова",6,19,null,{"$f":"E34+D34","v":19}]
["Муниципальное бюджетное общеобразовательное учреждение «Джалильская средняя общеобразовательная школа №2» Сармановского муниципального района РТ","Гаскаров",6,18,null,{"$f":"E35+D35","v":18}]
["муниципальное бюджетное общеобразовательное учреждение «Большенуркеевская средняя общеобразовательная школа» Сармановского муниципального района Республики Татарстан.","Харрасов",6,15,null,{"$f":"E36+D36","v":15}]
["Муниципальное бюджетное общеобразовательное учреждение «Джалильская гимназия» Сармановского муниципального района РТ","Валиева",6,14,12,{"$f":"E37+D37","v":26},"призер"]
["Муниципальное бюджетное общеобразовательное учреждение «Сармановская гимназия» Сармановского муниципального района Республики Татарстан","Хафизова",6,12,null,{"$f":"E38+D38","v":12}]
["Муниципальное бюджетное общеобразовательное учреждение «Старокаширская средняя общеобразовательная школа имени Зинната Хасанова» Сармановского муниципального района Республики Татарстан","Ахметбаева",6,11,null,{"$f":"E39+D39","v":11}]
["Муниципальное бюджетное общеобразовательное учреждение «Сармановская гимназия» Сармановского муниципального района Республики Татарстан","Миннеханов",6,11,null,{"$f":"E40+D40","v":11}]
["муниципальное бюджетное общеобразовательное учреждение «Большенуркеевская средняя общеобразовательная школа» Сармановского муниципального района Республики Татарстан.","Хазиев",6,9,null,{"$f":"E41+D41","v":9}]
["Муниципальное бюджетное общеобразовательное учреждение «Джалильская гимназия» Сармановского муниципального района РТ","Аслямов",7,49,null,{"$f":"E42+D42","v":49},"победитель"]
["Муниципальное бюджетное общеобразовательное учреждение «Сармановская гимназия» Сармановского муниципального района Республики Татарстан","Брызгалов",7,40,null,{"$f":"E43+D43","v":40},"призер"]
["Муниципальное бюджетное общеобразовательное учреждение «Джалильская средняя общеобразовательная школа №2» Сармановского муниципального района РТ","Баяндин",7,32,null,{"$f":"E44+D44","v":32},"призер"]
["Муниципальное бюджетное общеобразовательное учреждение «Сармановская средняя общеобразовательная школа» Сармановского муниципального района Республики Татарстан","Гаврилов",7,19,null,{"$f":"E45+D45","v":19}]
["Муниципальное бюджетное общеобразовательное учреждение «Петровскозаводская средняя общеобразовательная школа» Сармановского муниципального района Республики Татарстан","Ардыханова",7,13,null,{"$f":"E46+D46","v":13}]
["Муниципальное бюджетное общеобразовательное учреждение «Азалаковская основная общеобразовательная школа» Сармановского муниципального района Республики Татарстан","Габделгазизова",7,12,null,{"$f":"E47+D47","v":12}]
["Муниципальное бюджетное общеобразовательное учреждение «Кавзияковская основная общеобразовательная школа» Сармановского муниципального района Республики Татарстан","Сахбетдинова",8,39,null,{"$f":"E48+D48","v":39},"победитель"]
["Муниципальное бюджетное общеобразовательное учреждение «Джалильская средняя общеобразовательная школа №1 с углубленным изучением отдельных предметов» Сармановского муниципального района РТ","Кириллов",8,32,null,{"$f":"E49+D49","v":32},"призер"]
["Муниципальное бюджетное общеобразовательное учреждение «Джалильская средняя общеобразовательная школа №1 с углубленным изучением отдельных предметов» Сармановского муниципального района РТ","Халиуллина",8,31,null,{"$f":"E50+D50","v":31},"призер"]
["Муниципальное бюджетное общеобразовательное учреждение «Сармановская средняя общеобразовательная школа» Сармановского муниципального района Республики Татарстан","Муртазин",8,20,null,{"$f":"E51+D51","v":20}]
["Муниципальное бюджетное общеобразовательное учреждение «Джалильская средняя общеобразовательная школа №2» Сармановского муниципального района РТ","Гареев",8,20,null,{"$f":"E52+D52","v":20}]
["Муниципальное бюджетное общеобразовательное учреждение «Старокаширская средняя общеобразовательная школа имени Зинната Хасанова» Сармановского муниципального района Республики Татарстан","Бадертдинов",8,19,null,{"$f":"E53+D53","v":19}]
["Муниципальное бюджетное общеобразовательное учреждение «Сармановская средняя общеобразовательная школа» Сармановского муниципального района Республики Татарстан","Гараев",8,17,null,{"$f":"E54+D54","v":17}]
["Муниципальное бюджетное общеобразовательное учреждение «Петровскозаводская средняя общеобразовательная школа» Сармановского муниципального района Республики Татарстан","Зайнуллин",8,15,null,{"$f":"E55+D55","v":15}]
["Муниципальное бюджетное общеобразовательное учреждение «Джалильская средняя общеобразовательная школа №2» Сармановского муниципального района РТ","Миназова",9,64.5,null,{"$f":"E56+D56","v":64.5},"победитель"]
["Муниципальное бюджетное общеобразовательное учреждение «Сармановская гимназия» Сармановского муниципального района Республики Татарстан","Галиуллина",9,52.5,null,{"$f":"E57+D57","v":52.5},"призер"]
["Муниципальное бюджетное общеобразовательное учреждение «Джалильская гимназия» Сармановского муниципального района РТ","Асмандиарова",9,51,null,{"$f":"E58+D58","v":51},"призер"]
["Муниципальное бюджетное общеобразовательное учреждение «Джалильская средняя общеобразовательная школа №2» Сармановского муниципального района РТ","Рахимова",9,40.5,null,{"$f":"E59+D59","v":40.5}]
["Муниципальное бюджетное общеобразовательное учреждение «Азалаковская основная общеобразовательная школа» Сармановского муниципального района Республики Татарстан","Хамидуллина",9,12.5,null,{"$f":"E60+D60","v":12.5}]
["Муниципальное бюджетное общеобразовательное учреждение «Джалильская средняя общеобразовательная школа №1 с углубленным изучением отдельных предметов» Сармановского муниципального района РТ","Фролова",10,74,null,{"$f":"E61+D61","v":74},"призер"]
["Муниципальное бюджетное общеобразовательное учреждение «Джалильская средняя общеобразовательная школа №1 с углубленным изучением отдельных предметов» Сармановского муниципального района РТ","Асадуллина",10,74,null,{"$f":"E62+D62","v":74},"призер"]
["Муниципальное бюджетное общеобразовательное учреждение «Сармановская гимназия» Сармановского муниципального района Республики Татарстан","Загирова",10,70,3,{"$f":"E63+D63","v":73},"призер"]
["Муниципальное бюджетное общеобразовательное учреждение «Сармановская гимназия» Сармановского муниципального района Республики Татарстан","Салихова",10,70,10,{"$f":"E64+D64","v":80},"победитель"]
["Муниципальное бюджетное общеобразовательное учреждение «Джалильская гимназия» Сармановского муниципального района РТ","Насибуллина",10,43,null,{"$f":"E65+D65","v":43}]
["муниципальное бюджетное общеобразовательное учреждение «Большенуркеевская средняя общеобразовательная школа» Сармановского муниципального района Республики Татарстан.","Назмутдинова",10,34,null,{"$f":"E66+D66","v":34}]
["Муниципальное бюджетное общеобразовательное учреждение «Джалильская средняя общеобразовательная школа №2» Сармановского муниципального района РТ","Фролов",11,81,null,{"$f":"E67+D67","v":81},"победитель"]
["Муниципальное бюджетное общеобразовательное учреждение «Джалильская средняя общеобразовательная школа №2» Сармановского муниципального района РТ","Амирова",11,71,null,{"$f":"E68+D68","v":71},"призер"]
["Муниципальное бюджетное общеобразовательное учреждение «Сармановская гимназия» Сармановского муниципального района Республики Татарстан","Яруллин",11,71,null,{"$f":"E69+D69","v":71},"призер"]
["Муниципальное бюджетное общеобразовательное учреждение «Джалильская гимназия» Сармановского муниципального района РТ","Асмандиаров",11,68.5,null,{"$f":"E70+D70","v":68.5},"призер"]
["Муниципальное бюджетное общеобразовательное учреждение «Джалильская средняя общеобразовательная школа №2» Сармановского муниципального района РТ","Сафиуллина",11,59.5,null,{"$f":"E71+D71","v":59.5}]
["Муниципальное бюджетное общеобразовательное учреждение «Сармановская гимназия» Сармановского муниципального района Республики Татарстан","Ситдикова",11,55,null,{"$f":"E72+D72","v":55}]
["Муниципальное бюджетное общеобразовательное учреждение «Старокаширская средняя общеобразовательная школа имени Зинната Хасанова» Сармановского муниципального района Республики Татарстан","Мухамадиева",11,5,null,{"$f":"E73+D73","v":5}]